[Event "Magistral Ajedrez 2019"]
[Site "Zaragoza"]
[Date "2019.07.21"]
[Round "9.4"]
[White "Shome Shiv"]
[Black "Sos Andreu, Eric"]
[Result "1/2-1/2"]
[ECO "C42"]
[WhiteElo "2298"]
[BlackElo "2343"]
[Annotator "NA"]
[PlyCount "45"]
[EventDate "2019.07.15"]
[EventType "swiss"]
[EventCountry "ESP"]
[SourceTitle "playchess.com"]
[Source "ChessBase"]
[SourceQuality "1"]
[TimeControl "5400+30"]

1. e4 {[%emt 0:00:00]} e5 {[%emt 0:00:00]} 2. Nf3 {[%emt 0:00:00]} Nf6 {[%emt 0:00:00]} 3. Nxe5 {[%emt 0:00:10]} d6 {[%emt 0:00:00]} 4. Nf3 {[%emt 0:00:30]} Nxe4 {[%emt 0:00:06]} 5. Qe2 {[%emt 0:00:45]} Qe7 {[%emt 0:00:24]} 6. d3 {[%emt 0:00:05]} Nf6 {[%emt 0:01:04]} 7. Bg5 {[%emt 0:00:32]} Qxe2+ {[%emt 0:06:03]} 8. Bxe2 {[%emt 0:00:10]} Be7 {[%emt 0:00:01]} 9. Nc3 {[%emt 0:00:18]} c6 {[%emt 0:00:38]} 10. O-O {[%emt 0:00:08]} Nbd7 {[%emt 0:02:02]} 11. Rfe1 {[%emt 0:01:29]} Nf8 {[%emt 0:02:13]} 12. h3 {[%emt 0:03:06]} Ne6 {[%emt 0:00:57]} 13. Bd2 {[%emt 0:01:24]} O-O {[%emt 0:02:34]} 14. d4 {[%emt 0:07:51]} d5 {[%emt 0:01:52]} 15. Bd3 {[%emt 0:00:37]} Bd6 {[%emt 0:00:44]} 16. g3 {[%emt 0:01:46]} Bd7 {[%emt 0:01:15]} 17. Rad1 {[%emt 0:06:34]} Rfe8 {[%emt 0:01:50]} 18. a3 {[%emt 0:03:09]} Bc7 {[%emt 0:03:22]} 19. Kg2 {[%emt 0:05:02]} Rad8 {[%emt 0:00:32]} 20. Kg1 {[%emt 0:03:55]} Bc8 {[%emt 0:02:05]} 21. Kg2 {[%emt 0:01:00]} Bd7 {[%emt 0:01:25]} 22. Kg1 {[%emt 0:00:05]} Bc8 {[%emt 0:00:04]} 23. Kg2 1/2-1/2

[Event "Magistral Ajedrez 2019"]
[Site "Zaragoza"]
[Date "2019.07.21"]
[Round "9.5"]
[White "Dardha, Daniel"]
[Black "Kovacevic, Slobodan"]
[Result "1/2-1/2"]
[ECO "E00"]
[WhiteElo "2420"]
[BlackElo "2257"]
[Annotator "NA"]
[PlyCount "55"]
[EventDate "2019.07.15"]
[EventType "swiss"]
[EventCountry "ESP"]
[SourceTitle "playchess.com"]
[Source "ChessBase"]
[SourceQuality "1"]
[TimeControl "5400+30"]

1. d4 {[%emt 0:00:00]} Nf6 {[%emt 0:00:00]} 2. c4 {[%emt 0:00:00]} e6 {[%emt 0:00:00]} 3. Nc3 {[%emt 0:00:00]} c5 {[%emt 0:01:18]} 4. Nf3 {[%emt 0:00:00]} cxd4 {[%emt 0:00:39]} 5. Nxd4 {[%emt 0:00:00]} a6 {[%emt 0:00:20]} 6. a3 {[%emt 0:00:32]} Qc7 {[%emt 0:00:10]} 7. e4 {[%emt 0:00:03]} b6 {[%emt 0:00:24]} 8. Be3 {[%emt 0:00:17]} Bb7 {[%emt 0:00:07]} 9. f3 {[%emt 0:00:03]} d6 {[%emt 0:00:30]} 10. Rc1 {[%emt 0:00:14]} Nbd7 {[%emt 0:01:16]} 11. Be2 {[%emt 0:00:11]} Rc8 {[%emt 0:01:04]} 12. O-O {[%emt 0:00:17]} Be7 {[%emt 0:00:27]} 13. b4 {[%emt 0:00:21]} O-O {[%emt 0:00:16]} 14. Nb3 {[%emt 0:00:19]} Qb8 {[%emt 0:00:50]} 15. Kh1 {[%emt 0:00:18]} Rfe8 {[%emt 0:00:48]} 16. Bg1 {[%emt 0:00:13]} Bd8 {[%emt 0:03:45]} 17. Qd2 {[%emt 0:00:33]} Bc7 {[%emt 0:00:11]} 18. Rc2 {[%emt 0:00:30]} Red8 {[%emt 0:04:08]} 19. Rd1 {[%emt 0:00:10]} Ne5 {[%emt 0:01:37]} 20. Qc1 {[%emt 0:00:19]} Nfd7 {[%emt 0:01:21]} 21. Bf1 {[%emt 0:00:12]} h6 {[%emt 0:01:40]} 22. Qb1 {[%emt 0:00:35]} Qa8 {[%emt 0:01:36]} 23. Bf2 {[%emt 0:00:59]} Rb8 {[%emt 0:02:55]} 24. Qc1 {[%emt 0:00:40]} Rbc8 {[%emt 0:00:42]} 25. Qb1 {[%emt 0:00:05]} Rb8 {[%emt 0:00:44]} 26. Qc1 {[%emt 0:00:17]} Rbc8 {[%emt 0:01:25]} 27. Qb1 {[%emt 0:00:07]} Rb8 {[%emt 0:00:27]} 28. Qc1 {[%emt 0:00:07]} 1/2-1/2